fUST/lending_fUST_20240107
["ID","MTS","AMOUNT","RATE_DAILY","PERIOD"]
[310531627,1704571841623,-1050.04202864,0.00028399,2]
[310531629,1704571841634,-7181.69513596,0.000284,2]
[310536825,1704573032452,-154.90705577,0.00025559,4]
[310536827,1704573032462,-230.0045009,0.00027521,2]
[310536829,1704573032472,-614.45559955,0.00028399,2]
[310536831,1704573032482,-762.80188617,0.000284,2]
[310536833,1704573032492,-1143.6981303,0.000284,2]
[310536836,1704573032507,-1423.20579698,0.000284,2]
[310536840,1704573032519,-418.51762617,0.000284,2]
[310537055,1704573041706,-402.99311992,0.000284,2]
[310537056,1704573041717,-3004.54432201,0.000284,2]
[310537057,1704573041727,-1666.24071845,0.000284,2]
[310537058,1704573041736,-150.0,0.000284,2]
[310537059,1704573041745,-150.0,0.00028423,2]
[310537060,1704573041755,-190.0,0.00028468,2]
[310537061,1704573041765,-303.97982995,0.00028498,2]
[310537062,1704573041775,-1660.10396659,0.00028498,2]
[310537063,1704573041784,-973.98992676,0.00028499,2]
[310537064,1704573041794,-3040.35,0.0002858,3]
[310537065,1704573041804,-2533.63,0.0002858,3]
[310537066,1704573041813,-2111.35,0.0002858,3]
[310537067,1704573041823,-1759.46,0.0002858,3]
[310537068,1704573041832,-154.8915759,0.00028588,2]
[310537069,1704573041842,-154.8915759,0.00028588,2]
[310537070,1704573041851,-162.53224236,0.00028589,2]
[310537071,1704573041860,-31574.20461419,0.0002859,2]
[310537852,1704574237902,-154.87609912,0.00025729,4]
[310537853,1704574237912,-469.27046295,0.00026755,2]
[310537854,1704574237921,-6759.23973649,0.00026757,2]
[310537855,1704574237933,-2226.87699448,0.00026757,2]
[310538100,1704574240935,-8417.4916061,0.00026757,2]
[310538284,1704574242799,-1627.13878918,0.00026757,2]
[310545218,1704575431945,-154.87609912,0.00025416,4]
[310545221,1704575431955,-633.24123024,0.00025417,2]
[310545224,1704575431965,-2136.41629471,0.00026267,2]
[310545227,1704575431974,-49488.40492314,0.00026268,2]
[310545333,1704575440947,-511.59507686,0.00026268,2]
[310545335,1704575440957,-154.87609912,0.00026755,2]
[310545337,1704575440966,-155.28182379,0.00026756,2]
[310545339,1704575440975,-3757.19690109,0.00026757,2]
[310545511,1704575443036,-3364.97956113,0.00026757,2]
[310568870,1704577549725,200.0,0.00022071,7]
[310568871,1704577565721,65022.86024879,0.00026757,7]
[310568880,1704577688184,-180.3316024,0.00019178,2]
[310568881,1704577688214,-208.53959903,0.00019178,2]
[310568882,1704577688541,-7.93614697,0.00019178,2]
[310568883,1704577693493,-514.70094806,0.00019177,2]
[310568884,1704577693695,-10.50410098,0.00019177,2]
[310568885,1704577693725,-154.87609912,0.00019177,2]
[310568888,1704577704278,150.87929656,0.00028951,120]
[310568898,1704577792976,-724.6299291,0.00019003,2]
[310568899,1704577793113,-14.7883659,0.00019003,2]
[310568954,1704577834400,-3145.23973296,0.00019003,2]
[310568955,1704577834546,-64.18856598,0.00019003,2]
[310569013,1704577838589,-176.40697611,0.00019972,2]
[310569015,1704577838599,-1211.92219978,0.00019972,2]
[310569017,1704577838609,-154.87609912,0.00019973,2]
[310569019,1704577838619,-322.57910218,0.00019973,2]
[310569021,1704577838628,-154.87609912,0.00019973,2]
[310569023,1704577838638,-230.29533204,0.00019974,2]
[310569025,1704577838647,-1238.90884901,0.00019975,2]
[310569027,1704577838656,-560.03529731,0.00019976,2]
[310569030,1704577838666,-7858.42772256,0.00019976,2]
[310569031,1704577838675,-170.30280351,0.00019976,2]
[310569033,1704577838684,-154.87609912,0.00019976,2]
[310569035,1704577838694,-2806.42480714,0.00019977,2]
[310569038,1704577838703,-154.87609912,0.00019977,2]
[310569040,1704577838713,-2506.96614449,0.00019977,2]
[310569042,1704577838722,-19645.0560538,0.00019981,2]
[310569044,1704577838731,-3924.45514904,0.00019991,2]
[310569046,1704577838740,-176.60323112,0.0002,2]
[310569048,1704577838749,-154.87609912,0.0002,2]
[310569050,1704577838759,-255.10803984,0.00020046,2]
[310569052,1704577838768,-18863.69909385,0.00020065,2]
[310569054,1704577838778,-1055.93634783,0.00020067,2]
[310569056,1704577838787,-18145.08397548,0.00020067,2]
[310569058,1704577838796,-16308.12817517,0.00020068,5]
[310569060,1704577838806,-236.00464652,0.00020989,2]
[310569062,1704577838815,-326.45250531,0.00021,2]
[310569064,1704577838825,-190.250952,0.00021918,2]
[310569066,1704577838834,-156.72230709,0.00022,2]
[310569068,1704577838843,-151.0,0.00022337,2]
[310569070,1704577838852,-757.75701723,0.00022442,5]
[310569072,1704577838862,-190.250952,0.000232,2]
[310569074,1704577838871,-2291.27896623,0.00024,2]
[310569076,1704577838881,-151.0,0.00024369,2]
[310569078,1704577838890,-151.0,0.00024379,2]
[310569080,1704577838900,-151.0,0.00024379,2]
[310569082,1704577838909,-2028.3271136,0.00024387,2]
[310569084,1704577838919,-2091.44093784,0.00024387,2]
[310569086,1704577838928,-592.50451983,0.00024388,2]
[310569088,1704577838938,-1029.74071675,0.00024388,2]
[310569090,1704577838947,-502.31660412,0.00024388,2]
[310569092,1704577838956,-500.0,0.00024388,2]
[310569094,1704577838965,-219.21195055,0.00024388,2]
[310569096,1704577838974,-11676.45192915,0.00024389,2]
[310569098,1704577838984,-235.0,0.00024389,2]
[310569100,1704577838994,-11357.87374292,0.0002439,2]
[310569102,1704577839003,-1292.5216815,0.00024393,2]
[310569104,1704577839012,-963.20595678,0.00024434,2]
[310569106,1704577839022,-190.250952,0.00024482,2]
[310569108,1704577839031,-151.0,0.00024611,2]
[310569110,1704577839041,-5839.77548392,0.00024657,2]
[310569112,1704577839051,-399.67623567,0.00024933,2]
[310569114,1704577839060,-14285.97000267,0.00024934,2]
[310569116,1704577839069,-469.27046295,0.00024935,2]
[310569118,1704577839078,-155.03786366,0.00024935,2]
[310569120,1704577839087,-1105.5318358,0.00024935,2]
[310569122,1704577839097,-309.65937778,0.00024935,2]
[310569124,1704577839106,-281.87765438,0.00024935,2]
[310569126,1704577839115,-261.55260087,0.00024935,2]
[310569128,1704577839125,-186.62559229,0.00024935,2]
[310569130,1704577839134,-1932.15158856,0.00024935,2]
[310569132,1704577839143,-269.25366734,0.00024935,2]
[310569134,1704577839152,-331.78464483,0.00024935,2]
[310569136,1704577839161,-155.60215864,0.00024935,2]
[310569138,1704577839171,-857.25848156,0.00024935,2]
[310569140,1704577839179,-1782.85041348,0.00024935,2]
[310569142,1704577839188,-309.70578646,0.00024935,2]
[310569144,1704577839198,-343.32706477,0.00024935,2]
[310569146,1704577839207,-155.39948081,0.00024935,2]
[310569147,1704577839217,-576.55686335,0.00024935,2]
[310569150,1704577839226,-223.83526593,0.00024935,2]
[310569152,1704577839236,-298.20847202,0.00024935,2]
[310569154,1704577839245,-154.9732481,0.00024935,2]
[310569156,1704577839257,-725.56,0.00024935,2]
[310569158,1704577839266,-166.83703235,0.00024935,2]
[310569160,1704577839275,-2007.45430288,0.00024935,5]
[310569162,1704577839285,-164.78197284,0.00024935,2]
[310569164,1704577839294,-1988.32263926,0.00024935,2]
[310569165,1704577839303,-300.99259591,0.00024936,2]
[310569167,1704577839313,-916.16876166,0.00024936,2]
[310569170,1704577839322,-50000.0,0.00024937,2]
[310569172,1704577839331,-613.44573934,0.00025,2]
[310569173,1704577839340,-2483.08597309,0.00025,2]
[310569175,1704577839350,-4707.01098899,0.00025,2]
[310569177,1704577839358,-153.0,0.00026356,2]
[310569179,1704577839368,-153.0,0.00026356,2]
[310569181,1704577839377,-910.77159947,0.000264,2]
[310569183,1704577839386,-151.0,0.00026459,2]
[310569185,1704577839395,-151.0,0.00026459,2]
[310569187,1704577839404,-7720.95449626,0.00026459,2]
[310569189,1704577839414,-3000.0,0.00026459,2]
[310569191,1704577839423,-8392.75439778,0.0002646,2]
[310569205,1704577839531,-4511.93230563,0.0002646,2]
[310569207,1704577839543,-5000.0,0.0002646,2]
[310569209,1704577839552,-31308.75942116,0.0002646,2]
[310569211,1704577839561,-5000.0,0.0002646,2]
[310569213,1704577839570,-5000.0,0.0002646,2]
[310569215,1704577839580,-5000.0,0.0002646,2]
[310569217,1704577839589,-5000.0,0.0002646,2]
[310569219,1704577839598,-5000.0,0.0002646,2]
[310569221,1704577839607,-5000.0,0.0002646,2]
[310569223,1704577839616,-5000.0,0.0002646,2]
[310569225,1704577839625,-5000.0,0.0002646,2]
[310569227,1704577839634,-5000.0,0.0002646,2]
[310569229,1704577839644,-5000.0,0.0002646,2]
[310569231,1704577839653,-5000.0,0.0002646,2]
[310569233,1704577839663,-5000.0,0.0002646,2]
[310569235,1704577839672,-5000.0,0.0002646,2]
[310569237,1704577839681,-5000.0,0.0002646,2]
[310569238,1704577839691,-151.0,0.0002646,2]
[310569240,1704577839700,-151.0,0.0002646,2]
[310569243,1704577839710,-151.0,0.0002646,2]
[310569245,1704577839719,-151.0,0.0002646,2]
[310569246,1704577839729,-151.0,0.0002646,2]
[310569248,1704577839738,-151.0,0.0002646,2]
[310569251,1704577839748,-151.0,0.0002646,2]
[310569252,1704577839757,-151.0,0.0002646,2]
[310569254,1704577839767,-151.0,0.0002646,2]
[310569257,1704577839777,-151.0,0.0002646,2]
[310569258,1704577839787,-151.0,0.0002646,2]
[310569260,1704577839796,-151.0,0.0002646,2]
[310569263,1704577839806,-151.0,0.0002646,2]
[310569264,1704577839815,-151.0,0.0002646,2]
[310569266,1704577839825,-151.0,0.0002646,2]
[310569268,1704577839834,-151.0,0.0002646,2]
[310569271,1704577839845,-211.006253,0.0002646,2]
[310569272,1704577839854,-21053.05602129,0.0002646,2]
[310569275,1704577839863,-5000.0,0.0002646,2]
[310569276,1704577839872,-5000.0,0.0002646,2]
[310569279,1704577839882,-5000.0,0.0002646,2]
[310569281,1704577839891,-5000.0,0.0002646,2]
[310569282,1704577839901,-5000.0,0.0002646,2]
[310569285,1704577839911,-5000.0,0.0002646,2]
[310569287,1704577839921,-5000.0,0.0002646,2]
[310569289,1704577839931,-5000.0,0.0002646,2]
[310569291,1704577839940,-5000.0,0.0002646,2]
[310569293,1704577839950,-5000.0,0.0002646,2]
[310569295,1704577839959,-5000.0,0.0002646,2]
[310569297,1704577839969,-5000.0,0.0002646,2]
[310569299,1704577839978,-5000.0,0.0002646,2]
[310569301,1704577839987,-5000.0,0.0002646,2]
[310569302,1704577839996,-5000.0,0.0002646,2]
[310569304,1704577840006,-5000.0,0.0002646,2]
[310569306,1704577840015,-5000.0,0.0002646,2]
[310569309,1704577840025,-11838.02007961,0.0002646,2]
[310569310,1704577840035,-5000.0,0.0002646,2]
[310569313,1704577840045,-5000.0,0.0002646,2]
[310569315,1704577840055,-5000.0,0.0002646,2]
[310569316,1704577840064,-153.0,0.00026712,2]
[310569319,1704577840073,-153.0,0.00026712,2]
[310569321,1704577840083,-153.0,0.00026712,2]
[310569322,1704577840092,-153.0,0.00026712,2]
[310569325,1704577840102,-153.0,0.00026712,2]
[310569327,1704577840112,-153.0,0.00026712,2]
[310569328,1704577840121,-153.0,0.00026712,2]
[310569331,1704577840131,-153.0,0.00026712,2]
[310569332,1704577840140,-153.0,0.00026712,2]
[310569335,1704577840150,-153.0,0.00026712,2]
[310569336,1704577840159,-153.0,0.00026712,2]
[310569339,1704577840169,-530.94171222,0.00026723,4]
[310569341,1704577840178,-500.0,0.00026723,4]
[310569342,1704577840188,-500.0,0.00026723,4]
[310569345,1704577840198,-200.01260433,0.00026723,4]
[310569347,1704577840207,-563.0846066,0.00026723,4]
[310569349,1704577840217,-500.0,0.00026723,4]
[310569351,1704577840227,-201.77003696,0.00026723,4]
[310569352,1704577840236,-500.0,0.00026723,4]
[310569354,1704577840245,-500.0,0.00026723,4]
[310569356,1704577840256,-300.11652982,0.00026723,4]
[310569358,1704577840266,-500.0,0.00026723,4]
[310569360,1704577840275,-269.42955057,0.00026723,4]
[310569363,1704577840285,-500.0,0.00026723,4]
[310569365,1704577840295,-500.0,0.00026723,4]
[310569367,1704577840304,-500.0,0.00026723,4]
[310569368,1704577840313,-500.0,0.00026723,4]
[310569370,1704577840322,-500.0,0.00026723,4]
[310569372,1704577840331,-500.0,0.00026723,4]
[310569374,1704577840340,-500.0,0.00026723,4]
[310569376,1704577840349,-500.0,0.00026723,4]
[310569379,1704577840360,-500.0,0.00026723,4]
[310569381,1704577840372,-500.0,0.00026723,4]
[310569384,1704577840381,-500.0,0.00026723,4]
[310569386,1704577840391,-333.72902504,0.00026723,4]
[310569388,1704577840401,-500.0,0.00026723,4]
[310569389,1704577840411,-500.0,0.00026723,4]
[310569392,1704577840421,-500.0,0.00026723,4]
[310569394,1704577840430,-500.0,0.00026723,4]
[310569396,1704577840440,-500.0,0.00026723,4]
[310569398,1704577840449,-50000.0,0.00026725,2]
[310569399,1704577840459,-50000.0,0.00026725,2]
[310569401,1704577840469,-50000.0,0.00026725,2]
[310569404,1704577840479,-50000.0,0.00026725,2]
[310569406,1704577840489,-50000.0,0.00026725,2]
[310569408,1704577840499,-50000.0,0.00026725,2]
[310569410,1704577840509,-50000.0,0.00026725,2]
[310569412,1704577840518,-50000.0,0.00026725,2]
[310569414,1704577840527,-50000.0,0.00026725,2]
[310569416,1704577840536,-50000.0,0.00026725,2]
[310569418,1704577840545,-879.08289078,0.00026756,2]
[310569420,1704577840555,-23847.07641153,0.00026757,2]
[310569422,1704577840564,-156.34234532,0.00026757,2]
[310569424,1704577840573,-151.0,0.00026884,2]
[310569426,1704577840582,-319.8686511,0.00027,2]
[310569428,1704577840591,-1500.0,0.00027,2]
[310569430,1704577840600,-150.0,0.00027176,2]
[310569432,1704577840609,-153.0,0.00027178,2]
[310569434,1704577840621,-153.0,0.00027178,2]
[310569436,1704577840630,-155.0,0.00027397,2]
[310569438,1704577840639,-634.53857997,0.0002772,2]
[310569440,1704577840649,-344.36468707,0.00028,2]
[310569442,1704577840658,-237.22154841,0.00028,2]
[310569444,1704577840667,-154.87609912,0.00028,2]
[310569446,1704577840677,-1500.0,0.00028,2]
[310569447,1704577840687,-157.4556165,0.0002828,2]
[310569450,1704577840696,-155.2097952,0.000284,2]
[310569452,1704577840705,-176.37293722,0.000284,2]
[310569454,1704577840714,-300.0,0.000284,2]
[310569456,1704577840723,-265.70132317,0.000284,2]
[310569458,1704577840732,-2000.0,0.000284,2]
[310569459,1704577840741,-2000.0,0.0002841,2]
[310569461,1704577840750,-2000.0,0.0002842,2]
[310569464,1704577840759,-2000.0,0.0002843,2]
[310569466,1704577840768,-2000.0,0.0002844,2]
[310569468,1704577840777,-2000.0,0.0002845,2]
[310569469,1704577840786,-2000.0,0.0002846,2]
[310569470,1704577840795,-2000.0,0.0002847,2]
[310569471,1704577840804,-3850.0,0.0002848,2]
[310569472,1704577840813,-163.151197,0.000285,2]
[310569473,1704577840822,-739.418295,0.00028505,2]
[310569474,1704577840832,-356.44710143,0.0002869,2]
[310569475,1704577840841,-2077.63950727,0.0002869,2]
[310569476,1704577840850,-161.78040679,0.00028698,2]
[310569477,1704577840860,-446.30299996,0.00028698,2]
[310569478,1704577840870,-179.74284294,0.00028698,2]
[310569479,1704577840879,-417.12781844,0.00028698,2]
[310569480,1704577840888,-155.0,0.00028767,2]
[310569481,1704577840897,-306.0,0.00028795,2]
[310569482,1704577840906,-1568.65,0.00028797,2]
[310569483,1704577840915,-1568.65,0.00028797,2]
[310569484,1704577840924,-1568.65,0.00028797,2]
[310569485,1704577840933,-1568.65,0.00028797,2]
[310569486,1704577840942,-1568.65,0.00028797,2]
[310569487,1704577840951,-1568.65,0.00028797,2]
[310569488,1704577840960,-1568.65,0.00028797,2]
[310569489,1704577840969,-1568.65,0.00028797,2]
[310569490,1704577840977,-1568.65,0.00028797,2]
[310569491,1704577840987,-1568.65,0.00028797,2]
[310569492,1704577840996,-176.09743444,0.00028799,2]
[310569493,1704577841005,-196.05752698,0.00028799,2]
[310569495,1704577841017,-241.22307236,0.00028799,2]
[310569497,1704577841026,-39724.52534968,0.00028799,2]
[310569499,1704577841035,-155.18285666,0.00028898,2]
[310569501,1704577841044,-231.10405101,0.00028898,2]
[310569503,1704577841054,-3004.54432201,0.00028951,2]
[310569505,1704577841063,-1820.2732084,0.00028951,2]
[310569507,1704577841073,-200.0,0.00028951,2]
[310569509,1704577841083,-304.72111209,0.00028951,2]
[310569511,1704577841092,-762.80188617,0.00028951,2]
[310569513,1704577841101,-3388.41467337,0.00028951,2]
[310569515,1704577841111,-1500.0,0.00029,2]
[310569517,1704577841121,-620.726929,0.00029106,2]
[310569519,1704577841134,-151.0,0.00029157,2]
[310569521,1704577841143,-50000.0,0.00029343,5]
[310569523,1704577841153,-50000.0,0.00029347,5]
[310569525,1704577841162,-150.87929656,0.00029541,30]
[310569527,1704577841172,-5839.77548392,0.00029657,2]
[310569529,1704577841182,-3602.69667961,0.0002979,2]
[310569531,1704577841191,-3602.69667961,0.0002979,2]
[310569533,1704577841200,-3602.69667961,0.0002979,2]
[310569535,1704577841209,-3602.69667961,0.0002979,2]
[310569537,1704577841219,-3602.69667961,0.0002979,2]
[310569541,1704577841239,-3602.69667961,0.0002979,2]
[310569543,1704577841249,-3602.69667961,0.0002979,2]
[310569545,1704577841262,-3602.69667961,0.0002979,2]
[310569547,1704577841272,-3602.69667961,0.0002979,2]
[310569549,1704577841281,-3602.69667961,0.0002979,2]
[310569551,1704577841290,-312.6006807,0.000298,2]
[310569553,1704577841300,-50000.0,0.00029818,5]
[310569555,1704577841309,-752917.75299299,0.0002983,2]
[310569558,1704577841328,-86494.95009735,0.0002983,2]
[310570167,1704577850444,-1006.18434339,0.00019003,2]
[310570168,1704577850600,-20.53437435,0.00019003,2]
[310570192,1704578060997,150.8642222,0.00029112,120]
[310570195,1704578091623,-349.3181594,0.00019003,2]
[310570196,1704578091817,-7.12894203,0.00019003,2]
[310570204,1704578242491,-253.35268625,0.00019001,2]
[310570205,1704578242521,-154.87609912,0.00019001,2]
[310570206,1704578242551,-289.09359032,0.00019002,2]
[310570207,1704578242580,-2032.94928911,0.00019002,2]
[310570208,1704578242609,-265.70132317,0.00019003,2]
[310570209,1704578242639,-302.3955043,0.00019124,2]
[310570210,1704578242700,-67.3136427,0.00019124,2]
[310570211,1704578242854,154.87609912,0.00019001,2]
[310570214,1704578276715,-230.29533204,0.00019,2]
[310570215,1704578276746,-147.49969266,0.00019001,2]
[310570216,1704578276854,-7.71010254,0.00019001,2]
[310570227,1704578339567,-5000.0,0.0001896,2]
[310570228,1704578339612,-5000.0,0.0001896,2]
[310570229,1704578339754,-5000.0,0.0001896,2]
[310570230,1704578340171,-5000.0,0.0001896,2]
[310570231,1704578340315,-4900.0,0.0001896,2]
[310570237,1704578371935,150.8642222,0.00029277,120]
[310570238,1704578409647,-271.72897209,0.00018958,2]
[310570239,1704578409677,-147.78091897,0.00018959,3]
[310570240,1704578409810,-7.09518015,0.00018959,3]
[310570241,1704578409839,-156.34234532,0.0001896,2]
[310570242,1704578409993,256.07236559,0.00018959,2]
[310570243,1704578410023,419.50989106,0.00018959,2]
[310570244,1704578410256,-419.50989106,0.00018959,2]
[310570245,1704578414550,-154.87609912,0.00018958,2]
[310570246,1704578414582,-111.39592905,0.00018959,2]
[310570247,1704578414821,-5.43412302,0.00018959,2]
[310570257,1704578593208,-1257.76390214,0.00018841,2]
[310570258,1704578593328,-25.66865106,0.00018841,2]
[310570261,1704578671247,-154.87609912,0.00018831,2]
[310570262,1704578671276,-178.05995956,0.00018832,2]
[310570263,1704578671515,-6.79461344,0.00018832,2]
[310570264,1704578672456,242.3851774,0.00018831,2]
[310570270,1704578758385,-5000.0,0.00018822,2]
[310570271,1704578758563,-5000.0,0.00018822,2]
[310570272,1704578758790,-5000.0,0.00018822,2]
[310570273,1704578758835,-5000.0,0.00018822,2]
[310570274,1704578758980,-4900.0,0.00018822,2]
[310570276,1704578771410,-166.49187593,0.00018831,2]
[310570277,1704578771442,-1487.68132418,0.00018831,2]
[310570278,1704578771604,-33.75863674,0.00018831,2]
[310570280,1704578776324,-4784.50329475,0.0001883,2]
[310570281,1704578776354,-56.10367849,0.00018831,2]
[310570282,1704578776509,-98.78789741,0.00018831,2]
[310570283,1704578776538,-205.57118185,0.00018831,2]
[310570284,1704578776568,-154.8915759,0.00018831,2]
[310570285,1704578780335,-4179.25745701,0.000189,2]
[310570286,1704578780514,-85.29096851,0.000189,2]
[310570288,1704578795022,-154.87609912,0.00018898,2]
[310570289,1704578795051,-148.68105516,0.00018898,2]
[310570290,1704578795216,-6.19504396,0.00018898,2]
[310570291,1704578795671,154.87609912,0.00018897,2]
[310570294,1704578799932,-5000.0,0.00018831,2]
[310570295,1704578800172,-210.9786353,0.00018831,2]
[310570296,1704578800324,-871.79394782,0.00018897,2]
[310570297,1704578816160,-154.87609912,0.00018831,2]
[310570298,1704578816191,-148.68105516,0.00018898,2]
[310570299,1704578816269,-6.19504396,0.00018898,2]
[310570300,1704578817223,154.87609912,0.00018897,2]
[310570301,1704578828163,-283.31171851,0.00018898,2]
[310570302,1704578828319,-5.78187181,0.00018898,2]
[310570303,1704578841869,-294.17313043,0.00018896,2]
[310570304,1704578841900,-168.99649196,0.00018897,2]
[310570305,1704578842182,-9.45244127,0.00018897,2]
[310570306,1704578842561,154.87609912,0.00018896,3]
[310570307,1704578843477,162.60202211,0.00018896,2]
[310570308,1704578845884,-4601.17346373,0.00018897,2]
[310570309,1704578846067,-93.90149926,0.00018897,2]
[310570355,1704579032442,-3735.0637491,0.00019795,2]
[310570357,1704579032452,-2806.42480714,0.00019795,2]
[310570359,1704579032462,-154.87609912,0.00019796,2]
[310570361,1704579032471,-1735.74473674,0.00019796,2]
[310570363,1704579032480,-15867.43030525,0.00019796,2]
[310570365,1704579032489,-154.87609912,0.00019797,2]
[310570367,1704579032498,-1289.91196152,0.00019797,2]
[310570369,1704579032507,-271.72897209,0.00019798,2]
[310570371,1704579032516,-19645.0560538,0.00019798,2]
[310570373,1704579032526,-260.09214069,0.00019799,2]
[310570375,1704579032535,-154.87609912,0.00019799,3]
[310570377,1704579032544,-244.17060397,0.00019829,2]
[310570379,1704579032553,-179.21536151,0.00019829,2]
[310570381,1704579032562,-154.96842241,0.00019848,2]
[310570383,1704579032571,-4191.38119658,0.00019952,2]
[310570385,1704579032580,-2077.63950727,0.0002,2]
[310570387,1704579032589,-300.0,0.0002,2]
[310570389,1704579032598,-176.37293722,0.0002,2]
[310570391,1704579032607,-154.96842241,0.00020532,2]
[310570393,1704579032617,-769.41708107,0.00020998,2]
[310570395,1704579032626,-2291.27896523,0.00021,2]
[310570397,1704579032635,-326.45250531,0.00021,2]
[310570399,1704579032644,-154.96842241,0.00021216,2]
[310570401,1704579032653,-154.96842241,0.000219,2]
[310570403,1704579032662,-167.7524131,0.00021918,2]
[310570405,1704579032672,-294.29480218,0.00021998,2]
[310570407,1704579032681,-879.08289078,0.00021999,2]
[310570409,1704579032691,-4939.6478335,0.00022,2]
[310570411,1704579032700,-4264.54842552,0.000239,2]
[310570413,1704579032709,-243.52021274,0.00023948,2]
[310570415,1704579032718,-2680.60745421,0.0002396,2]
[310570417,1704579032728,-207.19093284,0.00023986,2]
[310570419,1704579032737,-284.76187805,0.00023987,2]
[310570421,1704579032747,-204.8358919,0.00023987,2]
[310570423,1704579032757,-384.4765782,0.00023998,2]
[310570425,1704579032768,-2098.68320007,0.00023998,2]
[310570427,1704579032777,-2291.27896623,0.00024,2]
[310570429,1704579032786,-29950.51,0.00024986,3]
[310570431,1704579032795,-560.03529731,0.00024996,2]
[310570433,1704579032805,-3472.71353536,0.00024998,2]
[310570435,1704579032815,-957.54075731,0.00024999,2]
[310570437,1704579032824,-183.94826502,0.00024999,2]
[310570439,1704579032834,-2483.08597309,0.00025,2]
[310570441,1704579032844,-325.26983931,0.00025,2]
[310570444,1704579032857,-262.78089489,0.00025,2]
[310570667,1704579038682,-469.27046295,0.00019799,2]
[310570669,1704579038692,-156.72230709,0.00023899,2]
[310570671,1704579038701,-564.23765757,0.00025,2]
[310570680,1704579038793,-3554.72259722,0.00025,2]
[310570682,1704579038802,-613.44573934,0.00025999,2]
[310570684,1704579038812,-554.98999339,0.00026,2]
[310570686,1704579038821,-472.49057093,0.00026344,2]
[310570688,1704579038830,-231.49777334,0.00026344,2]
[310570689,1704579038841,-226.35993757,0.00026344,2]
[310570691,1704579038850,-293.73363054,0.00026344,2]
[310570693,1704579038861,-1988.32263926,0.00026345,2]
[310570695,1704579038871,-26178.2356188,0.00026355,2]
[310570697,1704579038880,-634.50223632,0.000264,2]
[310570699,1704579038889,-631.23817433,0.00026613,4]
[310570701,1704579038898,-201.77003696,0.00026613,4]
[310570703,1704579038908,-200.01260433,0.00026613,4]
[310570705,1704579038917,-563.0846066,0.00026613,4]
[310570706,1704579038927,-500.0,0.00026613,4]
[310570707,1704579038937,-500.0,0.00026613,4]
[310570708,1704579038947,-500.0,0.00026613,4]
[310570709,1704579038956,-532.73477437,0.00026613,4]
[310570710,1704579038965,-500.0,0.00026613,4]
[310570711,1704579038974,-500.0,0.00026613,4]
[310570712,1704579038983,-500.0,0.00026613,4]
[310570713,1704579038992,-500.0,0.00026613,4]
[310570714,1704579039001,-500.0,0.00026613,4]
[310570715,1704579039010,-500.0,0.00026613,4]
[310570716,1704579039020,-500.0,0.00026613,4]
[310570717,1704579039030,-500.0,0.00026613,4]
[310570719,1704579039039,-500.0,0.00026613,4]
[310570721,1704579039048,-500.0,0.00026613,4]
[310570723,1704579039058,-455.34090995,0.00026613,4]
[310570725,1704579039067,-500.0,0.00026613,4]
[310570726,1704579039077,-500.0,0.00026613,4]
[310570728,1704579039086,-500.0,0.00026613,4]
[310570730,1704579039096,-500.0,0.00026613,4]
[310570732,1704579039106,-503.44836538,0.00026613,2]
[310570734,1704579039115,-500.0,0.00026613,4]
[310570736,1704579039124,-500.0,0.00026613,4]
[310570738,1704579039133,-500.0,0.00026613,4]
[310570740,1704579039142,-500.0,0.00026613,4]
[310570743,1704579039152,-430.25460765,0.00026613,4]
[310570745,1704579039162,-500.0,0.00026613,4]
[310570747,1704579039171,-1826178.76470065,0.00026614,2]
[310570749,1704579039184,-245759.80139302,0.00026614,2]
[310571629,1704579553910,-352.93177178,0.00019479,2]
[310571630,1704579553997,-7.20268922,0.00019479,2]
[310571631,1704579588731,-154.87609912,0.00019204,3]
[310571632,1704579588762,-154.87609912,0.00019204,2]
[310571633,1704579588793,-13.71073944,0.00019205,2]